bitfinex-derivatives/quotes_SOLF0:USTF0_20260226
["timestamp","ask_amount","ask_price","bid_price","bid_amount"]
[1772120870926,10.4207,86.364,86.291,6.77384546]
[1772120871127,8.29125231,86.39,86.291,6.77384546]
[1772120871323,390.35688571,86.41,86.311,6.77384546]
[1772120871523,10.4186,86.381,86.332,10.4245]
[1772120871722,8.29125231,86.39,86.311,6.77384546]
[1772120871918,10.4224,86.35,86.311,6.77384546]
[1772120872327,8.29125231,86.39,86.29,8.29125231]
[1772120872328,8.29125231,86.39,86.291,6.77384546]
[1772120872529,8.29125231,86.39,86.311,6.77353752]
[1772120872830,2.01549265,86.406,86.311,6.77353752]
[1772120873125,390.35688571,86.41,86.334,6.77353752]
[1772120873725,2.01517753,86.406,86.334,6.77353752]
[1772120873921,10.44712398,86.455,86.334,6.77353752]
[1772120873922,8.29125231,86.43,86.334,6.77353752]
[1772120874429,10.4137,86.422,86.364,6.77353752]
[1772120874725,8.29125231,86.43,86.364,6.77353752]
[1772120875033,8.29125231,86.45,86.373,6.77236614]
[1772120875326,0.13,86.429,86.373,6.77236614]
[1772120875528,0.13,86.429,86.377,10.419]
[1772120876025,0.13,86.429,86.385,10.418]
[1772120876226,0.13,86.429,86.373,6.77236614]
[1772120877918,0.13,86.429,86.374,10.4193]
[1772120878430,0.13,86.429,86.347,6.76253948]
[1772120878626,10.415,86.411,86.352,10.422]
[1772120878823,0.13,86.429,86.347,6.76253948]
[1772120879025,8.29125231,86.41,86.326,6.76207937]
[1772120879333,8.29125231,86.4,86.326,6.76207937]
[1772120879735,8.29125231,86.4,86.337,10.4238]
[1772120879927,8.29125231,86.4,86.326,6.76207937]
[1772120880429,8.29125231,86.38,86.304,6.76207937]
[1772120880624,8.29125231,86.4,86.304,6.76207937]
[1772120881028,8.29125231,86.4,86.309,6.7415636]
[1772120881335,8.29125231,86.38,86.301,6.7415636]
[1772120881530,8.29125231,86.38,86.314,6.7415636]
[1772120882428,8.29125231,86.36,86.293,6.7415636]
[1772120882939,8.29125231,86.34,86.241,6.74122752]
[1772120883328,10.426,86.32,86.256,6.74122752]
[1772120883629,8.29125231,86.32,86.256,6.74122752]
[1772120884333,10.4279,86.305,86.256,6.74122752]
[1772120884734,8.29125231,86.34,86.256,6.74122752]
[1772120885528,10.4266,86.315,86.256,6.74122752]
[1772120885731,8.29125231,86.34,86.256,6.74122752]
[1772120886237,8.29125231,86.36,86.261,6.74474455]
[1772120887636,10.4209,86.363,86.298,6.75459016]
[1772120888128,8.29125231,86.39,86.298,6.75459016]
[1772120888334,8.29125231,86.37,86.298,6.75459016]
[1772120889132,10.4232,86.343,86.298,6.75459016]
[1772120889339,8.29125231,86.37,86.298,6.75459016]
[1772120889844,8.29125231,86.39,86.298,6.75459016]
[1772120890232,8.29125231,86.39,86.301,6.75129484]
[1772120890637,10.4187,86.38,86.309,6.65735392]
[1772120890833,8.29125231,86.41,86.309,6.65735392]
[1772120891242,10.4175,86.391,86.309,6.65735392]
[1772120891543,41.03833512,86.432,86.309,6.65735392]
[1772120891736,10.4173,86.392,86.322,6.65735392]
[1772120892143,10.4187,86.381,86.322,6.65735392]
[1772120892532,8.29125231,86.4,86.322,6.65735392]
[1772120892937,8.29125231,86.42,86.322,6.65735392]
[1772120893538,10.4163,86.401,86.335,6.65673717]
[1772120893939,8.29125231,86.42,86.335,6.65673717]
[1772120894139,8.29125231,86.4,86.335,6.65673717]
[1772120894338,10.4194,86.375,86.31,8.29125231]
[1772120894539,10.4194,86.375,86.311,6.65673717]
[1772120895543,10.4183,86.384,86.321,6.63117832]
[1772120895943,10.4183,86.384,86.279,48.92821703]
[1772120895944,8.29125231,86.42,86.331,6.63117832]
[1772120896142,8.29125231,86.42,86.337,6.63117832]
[1772120896740,0.13,86.429,86.371,6.63778668]
[1772120897453,0.13,86.429,86.388,6.63778668]
[1772120897844,0.13,86.429,86.391,6.63778668]
[1772120898258,10.413,86.428,86.391,6.63778668]
[1772120898455,0.13,86.429,86.372,6.63778668]
[1772120898753,10.4143,86.418,86.372,6.63778668]
[1772120898963,0.13,86.429,86.372,6.63778668]
[1772120899863,10.4132,86.426,86.372,6.63778668]
[1772120900357,8.29125231,86.43,86.351,6.66923325]
[1772120901260,10.4148,86.413,86.351,6.66923325]
[1772120901462,8.29125231,86.43,86.354,6.67261668]
[1772120901861,10.4154,86.408,86.354,6.67261668]
[1772120902057,8.29125231,86.43,86.354,6.67261668]
[1772120902257,8.29125231,86.41,86.331,6.67261668]
[1772120902666,10.4172,86.393,86.331,6.67261668]
[1772120902860,8.29125231,86.41,86.331,6.67261668]
[1772120903057,10.4182,86.384,86.331,6.67261668]
[1772120903259,8.29125231,86.41,86.331,6.67261668]
[1772120904162,10.4181,86.385,86.331,6.67261668]
[1772120904461,0.36,86.409,86.331,6.67261668]
[1772120904462,8.29125231,86.39,86.331,6.67261668]
[1772120904865,8.29125231,86.39,86.291,6.67348618]
[1772120905066,8.29125231,86.37,86.291,6.67348618]
[1772120905271,8.29125231,86.37,86.293,6.67348618]
[1772120905563,29.13115231,86.37,86.293,6.67348618]
[1772120905765,8.29125231,86.37,86.293,6.67348618]
[1772120905968,8.29125231,86.37,86.273,6.67348618]
[1772120906169,162.0609,86.385,86.273,6.67348618]
[1772120906170,8.29125231,86.35,86.273,6.67348618]
[1772120906372,10.425,86.329,86.273,6.67348618]
[1772120907173,10.4238,86.338,86.274,6.68332838]
[1772120907569,8.29125231,86.37,86.274,6.68332838]
[1772120907770,8.29125231,86.39,86.291,6.68332838]
[1772120908565,10.4209,86.362,86.298,6.69564469]
[1772120909571,8.29125231,86.39,86.29,8.29125231]
[1772120909572,10.4198,86.372,86.306,6.69564469]
[1772120909772,8.29125231,86.41,86.311,6.69564469]
[1772120910574,8.29125231,86.41,86.327,6.6938834]
[1772120911478,1.10121524,86.389,86.275,14.23821703]
[1772120911679,1.10121524,86.369,86.265,14.23821703]
[1772120911885,1.10121524,86.369,86.243,20.8705]
[1772120911886,1.10121524,86.369,86.27,8.29125231]
[1772120912280,9.39246755,86.35,86.251,14.23821703]
[1772120912968,1.11063125,86.349,86.251,14.23821703]
[1772120913173,1.11063125,86.349,86.25,8.29125231]
[1772120913370,1.11063125,86.349,86.251,3.89259796]
[1772120913774,10.4246,86.331,86.272,10.4316]
[1772120914175,10.4246,86.331,86.251,3.89259796]
[1772120914574,10.4256,86.323,86.264,3.89259796]
[1772120914974,10.4256,86.323,86.267,10.4323]
[1772120915174,1.11063125,86.349,86.268,3.89259796]
[1772120915773,1.13345306,86.37,86.288,3.89259796]
[1772120915973,1.13345306,86.369,86.288,3.89259796]
[1772120916773,10.4217,86.355,86.298,10.4285]
[1772120917177,1.13345306,86.369,86.288,3.89259796]
[1772120918083,10.4208,86.363,86.307,10.4275]
[1772120918783,1.13345306,86.369,86.288,3.89259796]
[1772120919082,1.13345306,86.369,86.246,42.24737651]
[1772120919083,1.15483009,86.349,86.268,3.71551132]
[1772120919283,10.4239,86.338,86.286,10.43]
[1772120919581,10.4239,86.338,86.268,3.71551132]
[1772120919582,9.45039398,86.37,86.271,3.70218195]
[1772120919882,10.4204,86.366,86.301,3.70218195]
[1772120920082,9.45039398,86.37,86.301,3.70218195]
[1772120920483,10.4215,86.358,86.309,10.4272]
[1772120920684,10.4215,86.358,86.301,3.70218195]
[1772120921182,10.4202,86.368,86.304,3.70218195]
[1772120921382,1.15914167,86.37,86.304,3.70218195]
[1772120921782,10.421,86.362,86.304,3.70218195]
[1772120922379,10.421,86.362,86.268,20.8645]
[1772120922380,10.421,86.362,86.313,14.12888195]
[1772120922576,1.14698097,86.389,86.313,3.70218195]
[1772120923289,1.14698097,86.389,86.314,3.70218195]
[1772120923790,1.14698097,86.389,86.317,3.70218195]
[1772120924178,20.8266,86.426,86.317,3.70218195]
[1772120924179,1.50698097,86.409,86.317,3.70218195]
[1772120924384,10.4183,86.384,86.336,3.70218195]
[1772120925493,1.50698097,86.409,86.347,3.70218195]
[1772120926589,0.36,86.409,86.347,3.70218195]
[1772120926785,0.36,86.409,86.318,5.21048299]
[1772120926786,0.36,86.409,86.351,3.70218195]
[1772120927084,0.36,86.409,86.364,3.70218195]
[1772120927691,10.4125,86.432,86.375,3.70218195]
[1772120927995,8.27438429,86.47,86.375,3.70218195]
[1772120928196,10.4115,86.441,86.389,3.70218195]
[1772120928394,1.46723458,86.469,86.389,3.70218195]
[1772120928591,10.4124,86.432,86.389,3.70218195]
[1772120928789,1.46773863,86.448,86.389,3.70218195]
[1772120929797,10.4123,86.434,86.389,3.70218195]
[1772120929988,1.46773863,86.448,86.389,3.70218195]
[1772120930190,1.46773863,86.469,86.389,3.70218195]
[1772120930390,0.21,86.44,86.389,3.70218195]
[1772120930597,1.46773863,86.469,86.391,3.70218195]
[1772120931099,10.4081,86.468,86.397,3.70218195]
[1772120931699,10.4081,86.468,86.322,28.59138123]
[1772120931700,1.71719744,86.449,86.376,14.12138195]
[1772120931898,1.71719744,86.468,86.381,3.70218195]
[1772120932795,1.71719744,86.468,86.399,3.70218195]
[1772120933398,10.4084,86.466,86.4,14.11838195]
[1772120933594,10.4084,86.466,86.4,3.70218195]
[1772120934703,10.4084,86.466,86.401,3.70218195]
[1772120934897,379.40937785,86.486,86.401,3.70218195]
[1772120935197,1.77182711,86.509,86.43,3.70218195]
[1772120935394,10.4045,86.498,86.43,3.70218195]
[1772120935596,10.4045,86.498,86.434,3.70218195]
[1772120935799,10.4058,86.488,86.434,3.70218195]
[1772120935992,1.77182711,86.509,86.434,3.70218195]
[1772120936191,1.77182711,86.509,86.437,3.70218195]
[1772120936396,10.4067,86.48,86.416,3.70218195]
[1772120936598,1.77182711,86.491,86.416,3.70218195]
[1772120936803,1.77182711,86.491,86.418,3.70218195]
[1772120937197,10.4076,86.472,86.418,3.70218195]
[1772120937398,1.77182711,86.491,86.418,3.70218195]
[1772120937605,1.77182711,86.491,86.421,3.70218195]
[1772120938103,1.77182711,86.491,86.425,10.4132]
[1772120938104,10.4064,86.483,86.425,10.4132]
[1772120938493,10.4083,86.467,86.421,3.70218195]
[1772120938693,1.77182711,86.491,86.421,3.70218195]
[1772120939091,8.27438429,86.5,86.4,8.27438429]
[1772120939092,1.82043156,86.538,86.451,3.70218195]
[1772120939305,1.82043156,86.536,86.461,3.70218195]
[1772120940300,1.82043156,86.534,86.461,3.70218195]
[1772120940496,1.82043156,86.529,86.431,3.70218195]
[1772120940804,1.74154889,86.523,86.431,3.70218195]
[1772120941100,5.20261394,86.548,86.431,3.70218195]
[1772120941101,1.74154889,86.509,86.431,3.70218195]
[1772120941302,10.4056,86.489,86.431,3.70218195]
[1772120941502,1.74154889,86.488,86.431,3.70218195]
[1772120942197,1.74154889,86.508,86.433,3.70218195]
[1772120942396,1.74154889,86.527,86.433,3.70218195]
[1772120942595,10.404,86.502,86.434,3.70218195]
[1772120942996,1.82186232,86.508,86.434,3.70218195]
[1772120943197,10.4036,86.506,86.447,10.4106]
[1772120943395,1.82186232,86.508,86.434,3.70218195]
[1772120943795,10.4054,86.491,86.435,10.412]
[1772120944601,1.82186232,86.508,86.448,3.70218195]
[1772120945002,1.79847184,86.529,86.448,3.70218195]
[1772120945605,1.79847184,86.529,86.457,3.70218195]
[1772120945800,1.79847184,86.568,86.5,8.27438429]
[1772120946309,1.79847184,86.568,86.491,3.70218195]
[1772120947202,1.79847184,86.568,86.513,10.4027]
[1772120947798,1.79847184,86.568,86.499,3.70218195]
[1772120947994,1.80412083,86.559,86.471,3.70218195]
[1772120948506,1.80412083,86.559,86.477,3.70218195]
[1772120949001,10.3999,86.537,86.464,10.4085]
[1772120949200,1.67644426,86.536,86.464,10.4085]
[1772120950104,1.67644426,86.536,86.47,3.54159889]
[1772120950303,1.67993069,86.519,86.45,3.54159889]
[1772120950499,1.67993069,86.515,86.428,3.54159889]
[1772120950704,1.69457371,86.499,86.428,3.54159889]
[1772120951102,1.69457371,86.499,86.442,10.4111]
[1772120951293,8.27438429,86.5,86.442,10.4111]
[1772120951294,8.27438429,86.5,86.442,3.54159889]
[1772120951498,1.69457371,86.52,86.442,3.54159889]
[1772120951499,1.69457371,86.519,86.442,3.54159889]
[1772120951794,1.69457371,86.499,86.435,10.4121]
[1772120952193,1.69457371,86.496,86.435,10.4121]
[1772120952402,1.69457371,86.496,86.422,3.54159889]
[1772120952602,8.27438429,86.48,86.422,3.54159889]
[1772120952801,8.27438429,86.48,86.391,3.54159889]
[1772120952802,1.737323,86.477,86.391,3.54159889]
[1772120953006,1.737323,86.459,86.391,3.54159889]
[1772120953199,1.737323,86.459,86.367,3.54159889]
[1772120953408,1.737323,86.449,86.367,3.54159889]
[1772120953608,10.4109,86.445,86.368,3.54159889]
[1772120953808,1.737323,86.449,86.368,3.54159889]
[1772120954005,1.737323,86.429,86.348,3.54159889]
[1772120954213,1.737323,86.429,86.351,3.54159889]
[1772120954800,1.72063722,86.427,86.351,3.54159889]
[1772120955204,18.68708429,86.43,86.353,3.54159889]
[1772120955409,1.72063722,86.449,86.353,3.54159889]
[1772120956409,10.4126,86.431,86.368,3.54159889]
[1772120957009,1.72063722,86.449,86.351,3.54159889]
[1772120957206,8.27438429,86.43,86.351,3.54159889]
[1772120957408,8.27438429,86.43,86.296,11.83137108]
[1772120957409,1.61722361,86.399,86.306,3.54159889]
[1772120957603,1.61722361,86.379,86.306,3.54159889]
[1772120958010,10.4203,86.367,86.306,3.54159889]
[1772120958711,10.419,86.378,86.306,3.54159889]
[1772120959912,10.419,86.378,86.308,3.54159889]
[1772120960212,10.4203,86.367,86.308,3.54159889]
[1772120960412,1.5246766,86.379,86.308,3.54159889]
[1772120960812,8.27438429,86.36,86.271,3.54159889]
[1772120961116,8.27438429,86.36,86.291,3.54159889]
[1772120961721,1.54638894,86.359,86.291,3.54159889]
[1772120962116,10.4195,86.374,86.304,3.54159889]
[1772120962414,8.27438429,86.38,86.304,3.54159889]
[1772120962611,8.27438429,86.38,86.313,3.54159889]
[1772120963111,9.82077323,86.4,86.313,3.54159889]
[1772120963316,1.54656957,86.399,86.313,3.54159889]
[1772120963717,8.27438429,86.4,86.313,3.54159889]
[1772120964013,1.54656957,86.419,86.337,3.54159889]
[1772120964413,1.54656957,86.417,86.321,3.54159889]
[1772120964717,1.54656957,86.399,86.321,3.54159889]
[1772120964913,10.4178,86.388,86.321,3.54159889]
[1772120965413,10.4178,86.388,86.231,21.22236332]
[1772120965414,8.27438429,86.36,86.301,3.54159889]
[1772120965917,1.55066595,86.379,86.301,3.54159889]
[1772120966317,1.55066595,86.379,86.28,8.27438429]
[1772120966318,1.55066595,86.379,86.312,3.54159889]
[1772120966817,1.55066595,86.379,86.313,10.4267]
[1772120967411,1.83362034,86.377,86.313,10.4267]
[1772120968013,10.4193,86.375,86.313,10.4267]
[1772120968711,1.83091242,86.361,86.302,10.428]
[1772120968911,1.83091242,86.359,86.302,10.428]
[1772120970017,10.4215,86.358,86.302,10.428]
[1772120970314,8.27438429,86.36,86.31,3.54159889]
[1772120970516,1.83091242,86.379,86.31,3.54159889]
[1772120972722,1.83597506,86.359,86.281,3.54159889]
[1772120973018,1.83597506,86.379,86.281,3.54159889]
[1772120973222,1.83597506,86.379,86.313,10.4268]
[1772120975022,10.4195,86.374,86.301,3.54159889]
[1772120975822,10.4205,86.366,86.31,10.4271]
[1772120976016,1.83597506,86.379,86.301,3.54159889]
[1772120976922,10.4194,86.374,86.326,10.4252]
[1772120977624,1.83597506,86.379,86.326,10.4252]
[1772120978125,8.27438429,86.39,86.333,3.84704071]
[1772120978324,1.87112272,86.399,86.333,3.84704071]
[1772120978820,1.87131245,86.389,86.333,3.84704071]
[1772120979124,1.87131245,86.369,86.294,3.84704071]
[1772120979424,10.4217,86.356,86.294,3.84704071]
[1772120979622,3.75434561,86.446,86.35,8.27438429]
[1772120979816,3.75434561,86.5,86.375,3.31386238]
[1772120980018,3.75434561,86.489,86.391,3.31386238]
[1772120980317,3.75434561,86.489,86.411,10.4149]
[1772120980626,10.4071,86.477,86.391,3.31386238]
[1772120980921,3.75434561,86.476,86.391,3.31386238]
[1772120981427,3.75434561,86.474,86.392,3.31340571]
[1772120982022,3.75434561,86.474,86.399,10.4164]
[1772120982222,3.75434561,86.474,86.399,13.72980571]
[1772120982428,3.75434561,86.474,86.4,3.31340571]
[1772120984121,3.75434561,86.474,86.401,10.4162]
[1772120985025,3.75434561,86.474,86.414,10.4146]
[1772120985627,3.75434561,86.474,86.401,10.4161]
[1772120985827,3.75434561,86.474,86.402,3.61785388]
[1772120986029,3.75434561,86.489,86.402,3.61785388]
[1772120986419,3.75434561,86.509,86.435,10.412]
[1772120986620,3.75434561,86.509,86.436,3.61785388]
[1772120987126,3.75434561,86.507,86.443,10.411]
[1772120987425,3.75434561,86.507,86.42,8.25613408]
[1772120987726,3.75434561,86.494,86.432,10.4124]
[1772120988129,3.75434561,86.481,86.401,3.62155449]
[1772120988827,3.75434561,86.481,86.42,10.4138]
[1772120989225,3.75434561,86.505,86.421,3.61847875]
[1772120990330,8.25613408,86.52,86.421,3.61847875]
[1772120990331,3.75434561,86.491,86.421,3.61847875]
[1772120990531,3.75434561,86.491,86.4,8.25613408]
[1772120990731,3.75434561,86.477,86.4,11.89988037]
[1772120990928,10.507407,86.523,86.401,3.64374629]
[1772120991132,3.75434561,86.522,86.465,10.4084]
[1772120991335,3.75434561,86.522,86.441,3.64374629]
[1772120991625,3.75434561,86.522,86.421,3.64374629]
[1772120991934,3.75434561,86.492,86.433,10.4123]
[1772120992225,3.75434561,86.492,86.421,3.64374629]
[1772120992426,10.4054,86.491,86.423,10.4135]
[1772120992627,10.4054,86.491,86.424,3.66219421]
[1772120992932,14.15974561,86.491,86.424,3.66219421]
[1772120993932,3.75434561,86.49,86.424,3.66219421]
[1772120994235,3.75434561,86.49,86.402,3.66219421]
[1772120994236,3.75434561,86.481,86.402,3.66219421]
[1772120994735,10.4086,86.464,86.402,14.07819421]
[1772120995334,10.41,86.453,86.402,3.66219421]
[1772120995534,10.41,86.453,86.392,10.4172]
[1772120996037,3.75434561,86.464,86.392,10.4172]
[1772120997731,3.75434561,86.464,86.34,8.25613408]
[1772120997732,3.75434561,86.489,86.402,3.76228729]
[1772120998931,10.4085,86.465,86.41,10.415]
[1772120999541,10.4094,86.458,86.402,3.76228729]
[1772121000234,10.4103,86.451,86.382,3.76228729]
[1772121000438,3.75434561,86.45,86.382,3.76228729]
[1772121001831,3.75434561,86.45,86.362,3.76228729]
[1772121002036,10.4124,86.433,86.377,10.419]
[1772121002232,10.4124,86.433,86.35,8.25613408]
[1772121002233,3.75434561,86.469,86.371,3.76228729]
[1772121002440,8.25613408,86.48,86.391,3.76228729]
[1772121002636,10.4075,86.474,86.42,10.4138]
[1772121002835,3.75434561,86.486,86.413,3.76228729]
[1772121003135,10.4064,86.483,86.428,3.76228729]
[1772121003841,3.75434561,86.486,86.41,8.25613408]
[1772121004140,8.25613408,86.5,86.411,3.76228729]
[1772121004335,3.75434561,86.499,86.41,8.25613408]
[1772121004638,3.75434561,86.479,86.371,3.76228729]
[1772121005236,10.4121,86.436,86.384,3.76228729]
[1772121005434,3.75434561,86.455,86.351,3.76228729]
[1772121005635,10.413,86.428,86.376,10.4191]
[1772121005836,3.75434561,86.435,86.373,3.76228729]
[1772121007339,3.75434561,86.435,86.351,3.76228729]
[1772121007840,10.4152,86.41,86.356,10.4216]
[1772121008135,3.75434561,86.435,86.33,8.25613408]
[1772121008341,10.4171,86.394,86.331,3.76228729]
[1772121008735,10.4171,86.394,86.343,10.4231]
[1772121008934,10.416,86.403,86.344,3.76228729]
[1772121009735,10.4148,86.413,86.357,10.4214]
[1772121010442,10.4158,86.405,86.357,10.4214]
[1772121010643,3.75434561,86.419,86.344,3.76228729]
[1772121011139,3.75434561,86.419,86.331,3.75690871]
[1772121011640,3.51475487,86.393,86.311,3.75690871]
[1772121012042,3.51475487,86.414,86.311,3.75690871]
[1772121012545,10.4181,86.385,86.331,3.75690871]
[1772121012845,10.4181,86.385,86.31,8.25613408]
[1772121012846,10.4184,86.383,86.313,3.75690871]
[1772121013042,3.51475487,86.383,86.313,3.75690871]
[1772121013644,3.51475487,86.376,86.313,3.75690871]
[1772121013844,3.51475487,86.376,86.307,10.4275]
[1772121014345,13.93495487,86.368,86.307,10.4275]
[1772121014546,3.51475487,86.399,86.308,3.75690871]
[1772121015142,3.51475487,86.371,86.308,3.75690871]
[1772121015445,3.51475487,86.371,86.291,3.75690871]
[1772121015648,10.421,86.362,86.299,10.4284]
[1772121015845,3.51475487,86.359,86.291,3.75690871]
[1772121016848,3.51475487,86.359,86.293,3.75690871]
[1772121017244,8.25613408,86.38,86.293,3.75690871]
[1772121017245,10.419,86.378,86.317,10.4262]
[1772121017442,3.51475487,86.377,86.317,10.4262]
[1772121017641,3.51475487,86.377,86.293,3.75690871]
[1772121017844,3.51475487,86.375,86.316,10.4264]
[1772121018050,3.51475487,86.375,86.293,3.75690871]
[1772121018644,10.4199,86.371,86.306,10.4276]
[1772121019144,161.9738,86.432,86.285,3.75690871]
[1772121019145,3.51475487,86.359,86.285,3.75690871]
[1772121019546,10.4248,86.33,86.285,3.75690871]
[1772121019845,3.51475487,86.359,86.285,3.75690871]
[1772121020446,10.4226,86.349,86.296,10.4288]
[1772121020641,10.4226,86.349,86.297,3.75690871]
[1772121020848,3.51475487,86.359,86.297,3.75690871]
[1772121021050,10.4215,86.358,86.297,3.75690871]
[1772121021354,3.51475487,86.359,86.271,3.75690871]
[1772121021944,10.4243,86.335,86.271,3.75690871]
[1772121022444,3.51475487,86.359,86.271,3.75690871]
[1772121022842,10.423,86.345,86.293,3.75690871]
[1772121023448,10.423,86.345,86.295,3.75690871]
[1772121023647,10.4219,86.354,86.295,3.75690871]
[1772121024040,10.4219,86.354,86.3,10.4283]
[1772121024246,8.25613408,86.38,86.295,3.75690871]
[1772121024247,3.51475487,86.379,86.295,3.75690871]
[1772121024444,3.51475487,86.4,86.331,3.75690871]
[1772121025146,3.51475487,86.419,86.35,3.75690871]
[1772121025448,3.51475487,86.419,86.351,3.75690871]
[1772121026256,3.51475487,86.439,86.351,3.75690871]
[1772121026446,10.4125,86.432,86.351,3.75690871]
[1772121026651,3.51475487,86.439,86.351,3.75690871]
[1772121027449,10.4132,86.426,86.376,10.4191]
[1772121027855,10.4132,86.426,86.351,3.75690871]
[1772121028652,10.4143,86.417,86.368,10.4201]
[1772121028857,3.51475487,86.416,86.351,3.75690871]
[1772121030960,10.4145,86.415,86.365,10.4205]
[1772121031655,3.51475487,86.416,86.351,3.75690871]
[1772121031856,3.51475487,86.439,86.351,3.75690871]
[1772121032753,34.69,86.498,86.35,8.25613408]
[1772121032754,3.51475487,86.459,86.371,3.75690871]
[1772121033258,10.4102,86.451,86.404,10.4158]
[1772121033464,3.51475487,86.459,86.389,3.75690871]
[1772121033660,3.51475487,86.459,86.391,3.75690871]
[1772121033957,3.51475487,86.476,86.391,3.75690871]
[1772121034560,10.4087,86.464,86.41,10.415]
[1772121034755,13.92345487,86.464,86.41,10.415]
[1772121034956,3.51475487,86.463,86.374,3.75690871]
[1772121035365,13.92485487,86.452,86.391,10.4174]
[1772121035565,3.51475487,86.471,86.41,12.01304279]
[1772121036163,3.51475487,86.489,86.411,3.75690871]
[1772121036566,3.51475487,86.489,86.439,10.4116]
[1772121036863,3.51475487,86.508,86.431,3.75690871]
[1772121037365,10.4046,86.498,86.431,3.75690871]
[1772121037761,10.4046,86.498,86.44,10.4114]
[1772121038362,10.4046,86.498,86.448,10.4105]
[1772121038564,3.51475487,86.508,86.431,3.75690871]
[1772121039072,3.87096526,86.522,86.451,3.87564782]
[1772121039367,10.4018,86.521,86.451,3.87564782]
[1772121039764,3.87096526,86.522,86.476,10.4071]
[1772121039965,30.90604943,86.54,86.471,3.80540484]
[1772121040358,30.90604943,86.54,86.47,8.25613408]
[1772121040359,7e-06,86.523,86.49,3.80540484]
[1772121041371,7e-06,86.523,86.45,8.25613408]
[1772121041372,3.68422828,86.523,86.45,8.25613408]
[1772121041959,3.68422128,86.512,86.43,8.25613408]
[1772121042468,3.68422128,86.491,86.428,3.80540484]
[1772121042667,3.68422128,86.491,86.408,3.80540484]
[1772121042864,8.25613408,86.51,86.408,3.80540484]
[1772121042865,3.68422128,86.477,86.408,3.80540484]
[1772121043469,3.68422128,86.477,86.428,10.4129]
[1772121043664,3.68422128,86.477,86.408,3.80540484]
[1772121043869,3.68422128,86.477,86.388,3.80540484]
[1772121044068,3.68422128,86.455,86.367,3.80540484]
[1772121044567,3.68422128,86.435,86.367,3.80540484]
[1772121044975,3.68422128,86.455,86.367,3.80540484]
[1772121045472,14.09432128,86.452,86.396,10.4167]
[1772121045673,3.68422128,86.452,86.396,10.4167]
[1772121045869,3.68422128,86.452,86.405,10.4156]
[1772121048174,3.68422128,86.452,86.395,10.4169]
[1772121048372,3.68422128,86.452,86.388,3.80540484]
[1772121048577,8.25835202,86.48,86.404,10.4157]
[1772121048578,10.4087,86.463,86.404,10.4157]
[1772121049073,3.68422128,86.479,86.404,3.80540484]
[1772121049770,10.4069,86.478,86.424,10.4133]
[1772121050773,3.68422128,86.479,86.424,10.4133]
[1772121051569,3.68422128,86.519,86.422,3.80540484]
[1772121053574,3.68422128,86.519,86.404,20.8317]
[1772121053575,3.68422128,86.499,86.403,3.80540484]
[1772121054074,10.4054,86.491,86.424,3.80540484]
[1772121054467,3.68422128,86.481,86.401,3.80540484]
[1772121055178,3.68422128,86.481,86.426,10.4131]
[1772121055572,3.68422128,86.481,86.419,3.80540484]
[1772121056073,3.68422128,86.481,86.436,10.4119]
[1772121056970,3.68422128,86.481,86.419,3.80540484]
[1772121057679,3.68422128,86.481,86.445,10.4108]
[1772121058070,3.68422128,86.504,86.458,10.4093]
[1772121058270,3.68422128,86.504,86.421,3.80540484]
[1772121058870,3.68422128,86.502,86.421,3.80540484]
[1772121059374,3.68422128,86.502,86.42,8.25835202]
[1772121059375,3.68422128,86.519,86.44,3.80540484]
[1772121059573,3.68422128,86.499,86.42,12.06375686]
[1772121059778,3.68422128,86.481,86.436,10.4119]
[1772121059977,3.68422128,86.481,86.42,3.80540484]
[1772121060373,3.68422128,86.481,86.444,10.4109]
[1772121060580,3.68422128,86.481,86.42,3.80540484]
[1772121060983,3.68422128,86.473,86.415,10.4144]
[1772121061279,3.68422128,86.473,86.381,3.80540484]
[1772121061478,161.8295,86.509,86.381,3.80540484]
[1772121061479,10.4124,86.433,86.384,10.4182]
[1772121061669,3.68422128,86.433,86.361,3.80540484]
[1772121062270,3.68422128,86.459,86.361,3.80540484]
[1772121062477,3.68422128,86.459,86.36,8.25835202]
[1772121062478,3.68422128,86.478,86.381,3.80540484]
[1772121062671,10.4091,86.46,86.414,10.4145]
[1772121063178,10.4102,86.451,86.404,10.4157]
[1772121063375,3.68422128,86.469,86.404,10.4157]
[1772121063771,3.68422128,86.469,86.419,10.4139]
[1772121064073,3.68422128,86.489,86.421,3.80540484]
[1772121064270,161.7081,86.574,86.421,3.80540484]
[1772121064271,3.68422128,86.509,86.421,3.80540484]
[1772121064475,3.68422128,86.509,86.425,3.80540484]
[1772121065984,3.68422128,86.529,86.447,3.80540484]
[1772121066681,10.4019,86.52,86.447,3.80540484]